bitfinex/quotes_BTCUSD_20250709
["timestamp","ask_amount","ask_price","bid_price","bid_amount"]
[1752093843731,0.64467796,111040.0,111030.0,0.58599627]
[1752093843950,0.32772723,111040.0,111030.0,0.90179003]
[1752093844172,0.47344723,111040.0,111030.0,0.90179003]
[1752093844381,0.48245258,111040.0,111030.0,0.90179003]
[1752093844645,0.48245258,111040.0,111030.0,0.59500203]
[1752093844866,0.4914581,111040.0,111030.0,0.59500203]
[1752093845088,0.4994637,111040.0,111030.0,0.59500203]
[1752093845251,0.66056867,111040.0,111030.0,0.58599603]
[1752093845487,0.66156867,111040.0,111030.0,0.58599603]
[1752093845642,0.65256332,111040.0,111030.0,0.58599619]
[1752093845837,0.65156332,111040.0,111030.0,0.59500252]
[1752093846048,0.65156332,111040.0,111030.0,0.59700252]
[1752093846244,0.65156332,111040.0,111030.0,0.60700877]
[1752093847457,0.6425578,111040.0,111030.0,0.59800252]
[1752093847670,0.6425578,111040.0,111030.0,0.60700948]
[1752093847895,0.6425578,111040.0,111030.0,0.61601556]
[1752093848460,0.47144788,111040.0,111030.0,0.61601556]
[1752093848666,0.47144788,111040.0,111030.0,0.61626507]
[1752093849146,0.48045356,111040.0,111030.0,0.61626507]
[1752093849793,0.30771693,111040.0,111030.0,0.61626507]
[1752093850042,0.47140747,111040.0,111030.0,0.92305307]
[1752093850261,0.47140747,111040.0,111030.0,0.61626507]
[1752093850451,0.47140747,111040.0,111030.0,0.92305307]
[1752093850683,0.47140747,111040.0,111030.0,0.61626596]
[1752093850887,0.48041299,111040.0,111030.0,0.61626596]
[1752093851041,0.47140747,111040.0,111030.0,0.61626596]
[1752093851598,0.48041299,111040.0,111030.0,0.61626596]
[1752093851711,0.48041299,111040.0,111030.0,0.59938056]
[1752093851911,0.46240212,111040.0,111030.0,0.59938056]
[1752093852130,0.48041307,111040.0,111030.0,0.59938056]
[1752093852525,0.6695341,111040.0,111030.0,0.59938064]
[1752093852765,0.48041307,111040.0,111030.0,0.59938064]
[1752093853117,0.48941875,111040.0,111030.0,0.59938064]
[1752093853298,0.48041307,111040.0,111030.0,0.59938064]
[1752093854580,0.48941859,111040.0,111030.0,0.59938064]
[1752093854783,0.47140747,111040.0,111030.0,0.59938064]
[1752093855158,0.46240212,111040.0,111030.0,0.59938064]
[1752093855751,0.46240204,111040.0,111030.0,0.59938064]
[1752093856148,0.47140739,111040.0,111030.0,0.59938064]
[1752093856370,0.47140731,111040.0,111030.0,0.59938064]
[1752093856668,0.48041274,111040.0,111030.0,0.59938064]
[1752093857091,0.48041274,111040.0,111030.0,0.29259264]
[1752093857264,0.48941834,111040.0,111030.0,0.59938064]
[1752093857655,0.27313834,111040.0,111030.0,0.59938064]
[1752093857853,0.28214402,111040.0,111030.0,0.59938064]
[1752093858061,0.27313834,111040.0,111030.0,0.59938064]
[1752093858867,0.28214402,111040.0,111030.0,0.59938064]
[1752093859380,0.27313834,111040.0,111030.0,0.59938064]
[1752093860396,0.28214402,111040.0,111030.0,0.59938064]
[1752093860821,0.28214467,111040.0,111030.0,0.59938064]
[1752093861029,0.27313891,111040.0,111030.0,0.59938064]
[1752093861360,0.45325418,111040.0,111030.0,0.21432149]
[1752093861564,0.23699693,111040.0,111030.0,0.58076823]
[1752093861774,0.24600196,111040.0,111030.0,0.66182315]
[1752093861946,0.24600204,111040.0,111030.0,0.66182315]
[1752093863177,0.25500723,111040.0,111030.0,0.66182315]
[1752093863370,0.26401258,111040.0,111030.0,0.66182315]
[1752093863611,0.26397258,111040.0,111030.0,0.35503515]
[1752093863837,0.26397258,111040.0,111030.0,0.66182315]
[1752093864381,0.26397258,111040.0,111030.0,0.58076823]
[1752093864588,0.25496723,111040.0,111030.0,0.27398023]
[1752093864793,0.2639725,111040.0,111030.0,0.58076823]
[1752093864995,0.27297793,111040.0,111030.0,0.58076823]
[1752093865829,0.28198353,111040.0,111030.0,0.58076823]
[1752093866996,0.46209994,111040.0,111030.0,0.18522149]
[1752093867120,0.46408364,111040.0,111030.0,0.48991949]
[1752093867338,0.68036364,111040.0,111030.0,0.49892598]
[1752093867548,0.68036364,111040.0,111030.0,0.48991949]
[1752093867744,0.68036364,111040.0,111030.0,0.19213806]
[1752093867953,0.67135796,111040.0,111030.0,0.19213806]
[1752093868339,0.67135796,111040.0,111030.0,0.003]
[1752093868592,0.67135796,111040.0,111030.0,0.18313149]
[1752093868765,0.67135796,111040.0,111030.0,0.19213798]
[1752093869194,0.67135796,111040.0,111030.0,0.003]
[1752093870044,0.66937435,111040.0,111030.0,0.52222839]
[1752093870247,0.66937435,111040.0,111030.0,0.58172839]
[1752093870384,0.66937435,111040.0,111030.0,0.59073439]
[1752093871030,0.66937435,111040.0,111030.0,0.59077439]
[1752093871373,0.489259,111040.0,111030.0,0.59077439]
[1752093872195,0.32572723,111040.0,111030.0,0.59077439]
[1752093872418,0.37072519,111040.0,111030.0,0.89756239]
[1752093872631,0.37973062,111040.0,111030.0,0.89756239]
[1752093872826,0.37072519,111040.0,111030.0,0.89756239]
[1752093873005,0.37072519,111040.0,111030.0,0.59077439]
[1752093873206,0.37072511,111040.0,111030.0,0.59077439]
[1752093874289,0.37973038,111040.0,111030.0,0.59077439]
[1752093874699,0.37072511,111040.0,111030.0,0.59077439]
[1752093875030,0.37072511,111040.0,111030.0,0.28398639]
[1752093875231,0.21628,111040.0,111030.0,1.23756239]
[1752093875442,0.36168,111040.0,111030.0,1.23756239]
[1752093877084,0.21628,111040.0,111030.0,1.23756239]
[1752093877320,0.36168,111040.0,111030.0,1.23756239]
[1752093877865,0.36168,111040.0,111030.0,1.25210324]
[1752093878212,0.36168,111040.0,111030.0,1.25010324]
[1752093878614,0.36168,111040.0,111030.0,1.25410324]
[1752093878816,0.36168,111040.0,111030.0,1.25310324]
[1752093879022,0.36168,111040.0,111030.0,1.25510324]
[1752093879233,0.36168,111040.0,111030.0,2.24965924]
[1752093880256,0.36168,111040.0,111030.0,2.22739324]
[1752093880771,0.36168,111040.0,111030.0,2.21651724]
[1752093880980,0.36168,111040.0,111030.0,2.51391724]
[1752093883879,0.20727037,111040.0,111030.0,2.51391724]
[1752093884079,0.00596234,111060.0,111050.0,0.60990292]
[1752093884310,0.16028575,111060.0,111050.0,0.91669092]
[1752093884688,0.15128234,111060.0,111050.0,0.91669092]
[1752093885342,0.00696234,111060.0,111050.0,1.22347892]
[1752093885528,0.15224234,111060.0,111050.0,0.91669092]
[1752093885775,0.00796234,111060.0,111050.0,1.22347892]
[1752093885967,0.15324234,111060.0,111050.0,1.22347892]
[1752093886427,0.00596234,111060.0,111050.0,1.22347892]
[1752093886630,0.15124234,111060.0,111050.0,1.22547892]
[1752093886835,0.00596234,111060.0,111050.0,2.13856977]
[1752093887044,0.15120234,111060.0,111050.0,2.13860977]
[1752093887256,0.21668,111080.0,111070.0,0.60986563]
[1752093887591,0.21672703,111080.0,111070.0,0.94316896]
[1752093887914,0.36196703,111080.0,111070.0,0.94316896]
[1752093888108,0.21672703,111080.0,111070.0,1.28490881]
[1752093888363,0.20871741,111080.0,111070.0,1.28490881]
[1752093888701,0.0054153,111090.0,111080.0,0.60669698]
[1752093888814,0.1506553,111090.0,111080.0,0.91663498]
[1752093889237,0.0054153,111090.0,111080.0,0.91663498]
[1752093889462,0.1506553,111090.0,111080.0,1.22342298]
[1752093889675,0.1506553,111090.0,111080.0,0.91663498]
[1752093890276,0.0054153,111090.0,111080.0,0.91863498]
[1752093890607,0.1506153,111090.0,111080.0,0.91863498]
[1752093891263,0.0054153,111090.0,111080.0,0.91963498]
[1752093891470,0.1506153,111090.0,111080.0,0.91963498]
[1752093892436,0.0054153,111090.0,111080.0,0.91963498]
[1752093892640,0.1506153,111090.0,111080.0,0.61284698]
[1752093892873,0.1506153,111090.0,111080.0,1.21703498]
[1752093894649,0.1506153,111090.0,111080.0,0.91024698]
[1752093894846,0.1506153,111090.0,111080.0,1.21703498]
[1752093896806,0.1506153,111090.0,111080.0,1.52382298]
[1752093897420,0.1506153,111090.0,111080.0,1.21703498]
[1752093899102,0.1506153,111090.0,111080.0,1.52382298]
[1752093900991,0.1506153,111090.0,111080.0,1.21703498]
[1752093901755,0.0054153,111090.0,111080.0,1.21703498]
[1752093901955,0.1504553,111090.0,111080.0,1.52382298]
[1752093902519,0.0054153,111090.0,111080.0,1.53836383]
[1752093902693,0.1504153,111090.0,111080.0,1.53836383]
[1752093903875,0.1504153,111090.0,111080.0,0.92478783]
[1752093904077,0.1504153,111090.0,111080.0,1.53836383]
[1752093904882,0.1504153,111090.0,111080.0,0.92478783]
[1752093905055,0.1504153,111090.0,111080.0,1.21703498]
[1752093905643,0.1503753,111090.0,111080.0,1.21703498]
[1752093907908,0.15937628,111090.0,111080.0,1.18783498]
[1752093908080,0.1503753,111090.0,111080.0,1.18783498]
[1752093908219,0.1683775,111090.0,111080.0,1.15943498]
[1752093908676,0.49854927,111090.0,111080.0,0.6404]
[1752093908876,0.49854927,111090.0,111080.0,0.82945284]
[1752093909083,0.48954797,111090.0,111080.0,0.6404]
[1752093909324,0.48954797,111090.0,111080.0,0.3004]
[1752093909925,0.48954797,111090.0,111080.0,0.2984]
[1752093910109,0.79633597,111090.0,111080.0,0.001]
[1752093910309,0.49054797,111090.0,111080.0,0.001]
[1752093910511,0.23637555,111070.0,111060.0,0.81691736]
[1752093910733,0.38129579,111070.0,111060.0,1.15696439]
[1752093911113,0.2102325,111070.0,111060.0,1.15696439]
[1752093911317,0.20122908,111070.0,111060.0,1.16596796]
[1752093911512,0.06770195,111080.0,111070.0,0.20707563]
[1752093911710,0.28366099,111080.0,111070.0,0.51386363]
[1752093912187,0.28366075,111080.0,111070.0,0.51386363]
[1752093912497,0.0054153,111090.0,111080.0,0.20705698]
[1752093912701,0.28903507,111090.0,111080.0,0.51384498]
[1752093912907,0.29803621,111090.0,111080.0,0.51384498]
[1752093913056,0.30703784,111090.0,111080.0,0.51384498]
[1752093913262,0.48707204,111090.0,111080.0,0.51384498]
[1752093913498,0.16215767,111090.0,111080.0,0.51384498]
[1752093913724,0.30703767,111090.0,111080.0,0.51384498]
[1752093914090,0.31703938,111090.0,111080.0,0.51384498]
[1752093914291,0.30803767,111090.0,111080.0,0.51384498]
[1752093914492,0.31903929,111090.0,111080.0,0.51384498]
[1752093914717,0.30103613,111090.0,111080.0,0.51384498]
[1752093914888,0.31003767,111090.0,111080.0,0.51384498]
[1752093915091,0.31903929,111090.0,111080.0,0.51384498]
[1752093915291,0.31003767,111090.0,111080.0,0.51384498]
[1752093916103,0.30103613,111090.0,111080.0,0.51384498]
[1752093916588,0.31003767,111090.0,111080.0,0.51384498]
[1752093917101,0.30103613,111090.0,111080.0,0.51384498]
[1752093917285,0.49923337,111090.0,111080.0,0.51384498]
[1752093917741,0.50823467,111090.0,111080.0,0.51384498]
[1752093917945,0.49923337,111090.0,111080.0,0.51384498]
[1752093918400,0.51723605,111090.0,111080.0,0.51384498]
[1752093919418,0.52623759,111090.0,111080.0,0.51384498]
[1752093919629,0.70627179,111090.0,111080.0,0.50484303]
[1752093919843,0.70627179,111090.0,111080.0,0.51384514]
[1752093920955,0.69727065,111090.0,111080.0,0.50484303]
[1752093921179,0.70627227,111090.0,111080.0,0.51384506]
[1752093921308,0.70627276,111090.0,111080.0,0.49584084]
[1752093921520,0.2371569,111080.0,111070.0,0.83585787]
[1752093921763,0.3462918,111080.0,111070.0,0.53807295]
[1752093921971,0.3462918,111080.0,111070.0,0.54707587]
[1752093922294,0.35529423,111080.0,111070.0,0.55607871]
[1752093922420,0.17524382,111080.0,111070.0,0.56508147]
[1752093922626,0.17524382,111080.0,111070.0,0.87286947]
[1752093922830,0.35529423,111080.0,111070.0,0.53907295]
[1752093923055,0.35529423,111080.0,111070.0,0.54807595]
[1752093923253,0.35529423,111080.0,111070.0,0.55707887]
[1752093923769,0.35529423,111080.0,111070.0,0.54807595]
[1752093923959,0.35529423,111080.0,111070.0,0.85486395]
[1752093924386,0.35529423,111080.0,111070.0,0.86386687]
[1752093924825,0.17524382,111080.0,111070.0,0.56608163]
[1752093925113,0.35529423,111080.0,111070.0,0.86386687]
[1752093925316,0.35529423,111080.0,111070.0,0.19907303]
[1752093925514,0.35529423,111080.0,111070.0,0.21707895]
[1752093925723,0.17524382,111080.0,111070.0,0.53286971]
[1752093925923,0.35529423,111080.0,111070.0,0.53286971]
[1752093926073,0.35529423,111080.0,111070.0,0.52386695]
[1752093926280,0.35529423,111080.0,111070.0,0.53286971]
[1752093926478,0.17524382,111080.0,111070.0,0.53286971]
[1752093926686,0.36429675,111080.0,111070.0,0.53286971]
[1752093928260,0.35529464,111080.0,111070.0,0.20807611]
[1752093928461,0.34629229,111080.0,111070.0,0.001]
[1752093928632,0.34629229,111080.0,111070.0,0.18106662]
[1752093928810,0.34629229,111080.0,111070.0,0.1811247]
[1752093929012,0.33728986,111080.0,111070.0,0.00105808]
[1752093929228,0.33728986,111080.0,111070.0,0.1811247]
[1752093929589,0.33728986,111080.0,111070.0,0.00105808]
[1752093930243,0.64407786,111080.0,111070.0,0.00105808]
[1752093931110,0.64607786,111080.0,111070.0,0.00105808]
[1752093931710,0.64607786,111080.0,111070.0,5.808e-05]
[1752093932160,0.64707786,111080.0,111070.0,5.808e-05]
[1752093933125,0.24626978,111070.0,111060.0,0.30004703]
[1752093933312,0.48234671,111070.0,111060.0,0.30004703]
[1752093934145,0.48234671,111070.0,111060.0,0.30012076]
[1752093935226,0.48234671,111070.0,111060.0,0.30112076]
[1752093935805,0.48234671,111070.0,111060.0,0.30212076]
[1752093936355,0.48234671,111070.0,111060.0,0.30112076]
[1752093936555,0.48334671,111070.0,111060.0,0.30112076]
[1752093937339,0.48334671,111070.0,111060.0,0.49020756]
[1752093937340,0.49234979,111070.0,111060.0,0.49020756]
[1752093937712,0.49234979,111070.0,111060.0,0.49020773]
[1752093937713,0.48334671,111070.0,111060.0,0.49020773]
[1752093937849,0.47434355,111070.0,111060.0,0.49020773]
[1752093938045,0.47434355,111070.0,111060.0,0.30112076]
[1752093938662,0.32970355,111070.0,111060.0,0.49020773]
[1752093938871,0.47426355,111070.0,111060.0,0.49020773]
[1752093939473,0.47426355,111070.0,111060.0,0.48920773]
[1752093940689,0.44636355,111070.0,111060.0,0.48920773]
[1752093941164,0.44736355,111070.0,111060.0,0.48920773]
[1752093941320,0.44736355,111070.0,111060.0,0.3091249]
[1752093941527,0.44736355,111070.0,111060.0,0.48920773]
[1752093941798,0.44736355,111070.0,111060.0,0.49821179]
[1752093942001,0.41802355,111070.0,111060.0,0.48920773]
[1752093942176,0.09343693,111070.0,111060.0,1.52901517]
[1752093942325,0.23795693,111070.0,111060.0,1.52901517]
[1752093942519,0.14652,111070.0,111060.0,1.52901517]
[1752093942730,0.002,111070.0,111060.0,1.52901517]
[1752093942937,0.14652,111070.0,111060.0,1.52901517]
[1752093943144,0.14652,111070.0,111060.0,1.22222717]
[1752093943390,0.14552,111070.0,111060.0,1.52901517]
[1752093943765,0.001,111070.0,111060.0,1.53001517]
[1752093943956,0.14552,111070.0,111060.0,1.53001517]
[1752093944392,0.14452,111070.0,111060.0,1.53001517]
[1752093944572,0.00900187,111080.0,111060.0,1.44980316]
[1752093944775,0.10043872,111080.0,111070.0,0.57533446]
[1752093944979,0.24491872,111080.0,111070.0,0.57308363]
[1752093945185,0.24491872,111080.0,111070.0,0.57315736]
[1752093945857,0.09243693,111080.0,111070.0,0.57315736]
[1752093946070,0.23591693,111080.0,111070.0,0.57315736]
[1752093946495,0.23691693,111080.0,111070.0,0.57315736]
[1752093947203,0.001,111080.0,111070.0,0.91315736]
[1752093947409,0.14548,111080.0,111070.0,0.91315736]
[1752093947826,0.14544,111080.0,111070.0,0.91315736]
[1752093948037,0.14544,111080.0,111070.0,2.52585536]
[1752093948239,0.14544,111080.0,111070.0,2.10034136]
[1752093948438,0.14544,111080.0,111070.0,1.77296536]
[1752093948644,0.14544,111080.0,111070.0,1.77496536]
[1752093949055,0.14544,111080.0,111070.0,1.63564336]
[1752093949236,0.14444,111080.0,111070.0,1.63564336]
[1752093949620,0.14444,111080.0,111070.0,1.48739436]
[1752093949776,0.14444,111080.0,111070.0,1.05926436]
[1752093949979,0.14444,111080.0,111070.0,0.91715736]
[1752093955027,0.15344179,111080.0,111070.0,0.91715736]
[1752093955230,0.16244374,111080.0,111070.0,0.91715736]
[1752093955436,0.1804482,111080.0,111070.0,0.85999736]
[1752093955590,0.15344179,111080.0,111070.0,0.85999736]
[1752093955790,0.17144577,111080.0,111070.0,0.85999736]
[1752093955995,0.21775039,111080.0,111070.0,0.85999736]
[1752093956195,0.20874804,111080.0,111070.0,0.85999736]
[1752093956491,0.15344179,111080.0,111070.0,0.88879736]
[1752093956694,0.16244366,111080.0,111070.0,0.88879736]
[1752093956895,0.30018505,111080.0,111070.0,0.85793736]
[1752093957316,0.30918748,111080.0,111070.0,0.85793736]
[1752093957543,0.48923862,111080.0,111070.0,0.55114952]
[1752093957720,0.48023675,111080.0,111070.0,0.20214676]
[1752093957922,0.47123464,111080.0,111070.0,0.21114984]
[1752093958398,0.47123464,111080.0,111070.0,0.20214676]
[1752093958600,0.49103229,111080.0,111070.0,0.1931436]
[1752093958805,0.49103229,111080.0,111070.0,0.20014676]
[1752093959004,0.48202986,111080.0,111070.0,0.00207373]
[1752093959205,0.48202986,111080.0,111070.0,0.00107373]
[1752093959607,0.48202986,111080.0,111070.0,0.00207373]
[1752093959608,0.78881786,111080.0,111070.0,0.00207373]
[1752093959810,0.24466978,111070.0,111060.0,0.30004703]
[1752093960031,0.98289471,111070.0,111060.0,1e-08]
[1752093960233,0.99743556,111070.0,111060.0,1e-08]
[1752093960699,0.69064756,111070.0,111060.0,1e-08]
[1752093960906,0.83492756,111070.0,111060.0,1e-08]
[1752093961107,1.00927513,111070.0,111060.0,1e-08]
[1752093961353,0.64289471,111070.0,111060.0,1e-08]
[1752093961633,0.78713471,111070.0,111060.0,1e-08]
[1752093962271,0.79213471,111070.0,111060.0,1e-08]
[1752093963807,0.48534671,111070.0,111060.0,1e-08]
[1752093964245,0.34110671,111070.0,111060.0,1e-08]
[1752093964462,0.79213471,111070.0,111060.0,1e-08]
[1752093965671,0.48934671,111070.0,111060.0,0.00100001]
[1752093965869,0.79613471,111070.0,111060.0,0.00100001]
[1752093966705,0.79613471,111070.0,111060.0,0.00104001]
[1752093966922,0.48934671,111070.0,111060.0,0.00104001]
[1752093967133,0.79613471,111070.0,111060.0,0.00104001]
[1752093967728,0.48934671,111070.0,111060.0,0.00104001]
[1752093967926,0.79613471,111070.0,111060.0,0.00104001]
[1752093969491,0.48934671,111070.0,111060.0,0.00053996]
[1752093969695,0.8229987,111070.0,111060.0,0.00053996]
[1752093969898,0.5162107,111070.0,111060.0,0.00053996]
[1752093970109,0.8229987,111070.0,111060.0,0.00053996]
[1752093971146,0.79613471,111070.0,111060.0,0.00053996]
[1752093971757,0.82318471,111070.0,111060.0,0.00053996]
[1752093972479,0.49651979,111070.0,111060.0,0.00053996]
[1752093972852,0.46946979,111070.0,111060.0,0.18062279]
[1752093973047,0.46946979,111070.0,111060.0,0.00053996]
[1752093973472,0.46946979,111070.0,111060.0,0.00881155]
[1752093973784,0.46946979,111070.0,111060.0,0.00053996]
[1752093974654,0.32530979,111070.0,111060.0,0.00053996]
[1752093974994,0.44262979,111070.0,111060.0,0.00053996]
[1752093975431,0.47012979,111070.0,111060.0,0.00053996]
[1752093976167,0.49872979,111070.0,111060.0,0.00053996]
[1752093976377,0.80551779,111070.0,111060.0,0.00053996]
[1752093977405,0.82005864,111070.0,111060.0,0.00053996]
[1752093978190,0.49872979,111070.0,111060.0,0.00053996]
[1752093978589,0.80551779,111070.0,111060.0,0.00053996]
[1752093979211,0.77791779,111070.0,111060.0,0.00053996]
[1752093979716,0.47112979,111070.0,111060.0,0.00053996]
[1752093980187,0.77791779,111070.0,111060.0,0.00053996]
[1752093981010,0.60529779,111070.0,111060.0,0.00053996]
[1752093981341,0.77837779,111070.0,111060.0,0.00053996]
[1752093982417,0.80587779,111070.0,111060.0,0.00053996]
[1752093982817,0.85973187,111070.0,111060.0,0.00053996]
[1752093983117,0.9511688,111070.0,111060.0,0.00053996]
[1752093983812,0.85973187,111070.0,111060.0,0.00053996]
[1752093985004,0.55294387,111070.0,111060.0,0.00053996]
[1752093985237,0.85973187,111070.0,111060.0,0.00053996]
[1752093985447,0.83223187,111070.0,111060.0,0.00053996]
[1752093985899,0.85953187,111070.0,111060.0,0.00053996]
[1752093986318,0.55274387,111070.0,111060.0,0.00053996]
[1752093986520,0.85953187,111070.0,111060.0,0.00053996]
[1752093987103,0.55274387,111070.0,111060.0,0.00053996]
[1752093987297,0.83223187,111070.0,111060.0,0.00053996]
[1752093987704,0.49636387,111070.0,111060.0,0.00053996]
[1752093987849,0.80315187,111070.0,111060.0,0.00053996]
[1752093988662,0.35236387,111070.0,111060.0,0.00053996]
[1752093988925,0.80311187,111070.0,111060.0,0.00053996]
[1752093989117,0.83291187,111070.0,111060.0,0.00053996]
[1752093989857,0.52612387,111070.0,111060.0,0.00053996]
[1752093990105,0.83291187,111070.0,111060.0,0.00053996]
[1752093991193,0.32555879,111070.0,111060.0,0.00252996]
[1752093991398,0.44242979,111070.0,111060.0,0.05722996]
[1752093991752,0.44242979,111070.0,111060.0,0.02763996]
[1752093991992,0.74921779,111070.0,111060.0,0.02763996]
[1752093992171,0.96549779,111070.0,111060.0,0.02763996]
[1752093992388,0.68810979,111070.0,111060.0,0.00053996]
[1752093992519,0.99489779,111070.0,111060.0,0.00053996]
[1752093994518,1.03743864,111070.0,111060.0,0.00053996]
[1752093994687,1.34422664,111070.0,111060.0,0.00053996]
[1752093995065,1.03743864,111070.0,111060.0,0.00053996]
[1752093996621,0.92056796,111070.0,111060.0,0.00053996]
[1752093996861,1.06444796,111070.0,111060.0,0.00053996]
[1752094003531,1.09601242,111070.0,111060.0,0.00053996]
[1752094003980,1.06444796,111070.0,111060.0,0.00053996]
[1752094004847,0.75765996,111070.0,111060.0,0.00053996]
[1752094005027,1.06444796,111070.0,111060.0,0.00053996]
[1752094006145,0.75765996,111070.0,111060.0,0.00053996]
[1752094006345,1.03644796,111070.0,111060.0,0.00053996]
[1752094006549,1.0969373,111070.0,111060.0,0.00053996]
[1752094006780,0.7901493,111070.0,111060.0,0.00053996]
[1752094006974,1.03644796,111070.0,111060.0,0.00053996]
[1752094007197,1.06342796,111070.0,111060.0,0.00053996]
[1752094008957,0.87802711,111070.0,111060.0,0.00053996]
[1752094009162,1.04998711,111070.0,111060.0,0.00053996]
[1752094010199,1.06452796,111070.0,111060.0,0.00053996]
[1752094010923,0.20362765,111060.0,111050.0,4e-05]
[1752094011144,1.45126058,111060.0,111050.0,4e-05]
[1752094011639,0.19812622,111040.0,111030.0,4e-05]
[1752094011791,0.76937115,111040.0,111030.0,8.704e-05]
[1752094012646,0.74007115,111040.0,111030.0,8.704e-05]
[1752094013250,0.83150808,111040.0,111030.0,8.704e-05]
[1752094013626,0.85890808,111040.0,111030.0,8.704e-05]
[1752094014025,0.85890808,111040.0,111030.0,0.00108704]
[1752094014235,0.76747115,111040.0,111030.0,0.00108704]
[1752094014401,0.76847115,111040.0,111030.0,0.00108704]
[1752094014829,0.74107115,111040.0,111030.0,0.00108704]
[1752094016034,0.59735115,111040.0,111030.0,0.00108704]
[1752094016235,0.74103115,111040.0,111030.0,0.00108704]
[1752094016479,0.83246808,111040.0,111030.0,0.00108704]
[1752094017835,0.85986808,111040.0,111030.0,0.00108704]
[1752094019045,0.810029,111040.0,111030.0,0.00108704]
[1752094019295,0.838129,111040.0,111030.0,0.00108704]
[1752094019655,1.178129,111040.0,111030.0,0.00108704]
[1752094020611,1.18676463,111040.0,111030.0,0.00108704]
[1752094020750,1.17676463,111040.0,111030.0,0.00108704]
[1752094021176,1.18577023,111040.0,111030.0,0.00108704]
[1752094021772,1.49255823,111040.0,111030.0,0.00108704]
[1752094022869,1.58399516,111040.0,111030.0,0.00108704]
[1752094023044,1.49255823,111040.0,111030.0,0.00108704]
[1752094023629,1.18577023,111040.0,111030.0,0.00108704]
[1752094025518,1.01399023,111040.0,111030.0,0.00108704]
[1752094025725,1.32329375,111040.0,111030.0,0.03088704]
[1752094025858,1.17973375,111040.0,111030.0,0.03088704]
[1752094026074,1.32329375,111040.0,111030.0,0.03088704]
[1752094026279,1.41473068,111040.0,111030.0,0.03088704]
[1752094026496,1.42927153,111040.0,111030.0,0.03088704]
[1752094026947,1.0310466,111040.0,111030.0,0.03088704]
[1752094027103,0.64944875,111040.0,111030.0,0.06498704]
[1752094028545,0.95623675,111040.0,111030.0,0.06498704]
[1752094029137,0.95623675,111040.0,111030.0,0.06199704]
[1752094030001,0.64944875,111040.0,111030.0,0.05998704]
[1752094030154,0.64944875,111040.0,111030.0,0.06200704]
[1752094030354,0.9544468,111040.0,111030.0,0.06200704]
[1752094030863,0.5040988,111040.0,111030.0,0.06519704]
[1752094031081,0.6475788,111040.0,111030.0,0.06519704]
[1752094031382,1.67199565,111040.0,111030.0,0.00108704]
[1752094031582,0.18917197,111010.0,111000.0,0.03162]
[1752094031839,0.18918902,111000.0,110990.0,0.06162]
[1752094032036,0.18920606,110990.0,110980.0,0.06481]
[1752094032343,0.73091099,110990.0,110980.0,0.03162]
[1752094033220,0.73091099,110990.0,110980.0,0.03176119]
[1752094033900,0.73091099,110990.0,110980.0,0.03476119]
[1752094034835,0.73091099,110990.0,110980.0,0.00314119]
[1752094036266,0.73191099,110990.0,110980.0,0.00414119]
[1752094039341,0.74645184,110990.0,110980.0,0.00414119]
[1752094039676,0.43966384,110990.0,110980.0,0.00414119]
[1752094039872,0.74645184,110990.0,110980.0,0.00414119]
[1752094040301,0.77445184,110990.0,110980.0,0.00414119]
[1752094042430,0.02355132,110980.0,110970.0,0.0054153]
[1752094042680,1.63952985,110980.0,110970.0,1e-08]
[1752094042889,1.6667769,110980.0,110970.0,1e-08]
[1752094043027,1.6938529,110980.0,110970.0,1e-08]
[1752094043228,1.71219841,110980.0,110970.0,1e-08]
[1752094043538,0.23348102,110970.0,110960.0,0.0002]
[1752094043747,1.11039395,110970.0,110960.0,0.00024705]
[1752094043948,1.11039395,110970.0,110960.0,1e-08]
[1752094044148,1.11039395,110970.0,110950.0,0.00024]
[1752094044149,0.57349807,110960.0,110950.0,0.00024]
[1752094044349,1.143623,110960.0,110950.0,0.00028694]
[1752094044892,0.808335,110960.0,110950.0,0.00028694]
[1752094045109,0.635235,110960.0,110950.0,0.00028694]
[1752094045313,0.778635,110960.0,110950.0,0.02858694]
[1752094045491,1.085423,110960.0,110950.0,0.02858694]
[1752094045861,0.28169415,110960.0,110950.0,0.03060694]
[1752094046080,0.73488215,110960.0,110950.0,0.06110694]
[1752094046430,0.749423,110960.0,110950.0,0.00128694]
[1752094047062,0.749423,110960.0,110950.0,0.03030694]
[1752094049457,0.606023,110960.0,110950.0,0.06299694]
[1752094049598,0.84085993,110960.0,110950.0,0.06299694]
[1752094050025,0.42805415,110960.0,110950.0,0.06299694]
[1752094050224,0.73484215,110960.0,110950.0,0.02828694]
[1752094050500,0.749383,110960.0,110950.0,0.02828694]
[1752094050706,0.749383,110960.0,110950.0,0.00128694]
[1752094053171,0.776461,110960.0,110950.0,0.00128694]
[1752094053369,0.86789793,110960.0,110950.0,0.00128694]
[1752094053974,0.89699793,110960.0,110950.0,0.00128694]
[1752094054419,0.90544131,110960.0,110950.0,0.00128694]
[1752094054619,1.27484131,110960.0,110950.0,0.00128694]
[1752094055230,1.27384131,110960.0,110950.0,0.00128694]
[1752094055434,1.27084131,110960.0,110950.0,0.00028694]
[1752094055638,1.27784131,110960.0,110950.0,0.00128694]
[1752094057106,1.12786438,110960.0,110950.0,0.00128694]
[1752094057320,1.15476438,110960.0,110950.0,0.00128694]
[1752094060143,1.12786438,110960.0,110950.0,0.00128694]
[1752094060750,0.98454438,110960.0,110950.0,0.00128694]
[1752094060955,1.119381,110960.0,110950.0,0.05855694]
[1752094061158,1.119381,110960.0,110950.0,0.02938694]
[1752094061359,0.65477215,110960.0,110950.0,0.05855694]
[1752094061565,0.79805215,110960.0,110950.0,0.06164694]
[1752094061898,1.119381,110960.0,110950.0,0.00128694]
[1752094062014,1.146281,110960.0,110950.0,0.00128694]
[1752094062225,1.174781,110960.0,110950.0,0.00128694]
[1752094066288,1.146281,110960.0,110950.0,0.00128694]
[1752094068022,0.976101,110960.0,110950.0,0.00128694]
[1752094068228,0.976101,110960.0,110950.0,0.02968694]
[1752094068229,1.119341,110960.0,110950.0,0.02968694]
[1752094068878,0.976101,110960.0,110950.0,0.03175694]
[1752094069086,1.146501,110960.0,110950.0,0.00128694]
[1752094069615,0.812513,110960.0,110950.0,0.00128694]
[1752094069733,1.119301,110960.0,110950.0,0.00128694]
[1752094070658,0.812513,110960.0,110950.0,0.00128694]
[1752094070872,1.119301,110960.0,110950.0,0.02848694]
[1752094071781,1.15821214,110960.0,110950.0,0.02848694]
[1752094071947,0.85142414,110960.0,110950.0,0.02848694]
[1752094072152,1.119301,110960.0,110950.0,0.02848694]
[1752094072793,0.812513,110960.0,110950.0,0.00128694]
[1752094073192,1.029033,110960.0,110950.0,0.02808694]
[1752094073346,1.028993,110960.0,110950.0,0.06114694]
[1752094075574,0.54030416,110960.0,110950.0,0.07015984]
[1752094075721,0.6563864,110960.0,110950.0,0.06114694]
[1752094076558,0.6523864,110960.0,110950.0,0.06114694]
[1752094076877,0.6553864,110960.0,110950.0,0.06114694]
[1752094077023,0.6523864,110960.0,110950.0,0.06014694]
[1752094077427,0.6553864,110960.0,110950.0,0.06114694]